bitfinex-derivatives/quotes_BTCF0:USTF0_20230102
["timestamp","ask_amount","ask_price","bid_price","bid_amount"]
[1672618211000,0.2401,16631.0,16630.0,0.00681873]
[1672618211211,0.5408,16631.0,16630.0,0.00681873]
[1672618211424,0.2401,16631.0,16630.0,0.00681873]
[1672618211949,0.5408,16631.0,16630.0,0.00681873]
[1672618215943,0.52667,16631.0,16630.0,0.00681873]
[1672618216153,0.52659152,16631.0,16630.0,0.00681873]
[1672618217102,0.22589152,16631.0,16630.0,0.00681873]
[1672618217304,0.52659152,16631.0,16630.0,0.00681873]
[1672618217515,0.22589152,16631.0,16630.0,0.00681873]
[1672618217834,0.51898152,16631.0,16630.0,0.00681873]
[1672618218782,0.21828152,16631.0,16630.0,0.00681873]
[1672618218991,0.51898152,16631.0,16630.0,0.00681873]
[1672618220465,0.21828152,16631.0,16630.0,0.00681873]
[1672618220674,0.51898152,16631.0,16630.0,0.00681873]
[1672618229287,0.21828152,16631.0,16630.0,0.00681873]
[1672618229496,0.51898152,16631.0,16630.0,0.00681873]
[1672618232645,0.21828152,16631.0,16630.0,0.00681873]
[1672618232863,0.51898152,16631.0,16630.0,0.00681873]
[1672618233389,0.21828152,16631.0,16630.0,0.00681873]
[1672618233703,0.51898152,16631.0,16630.0,0.00681873]
[1672618233915,0.21828152,16631.0,16630.0,0.00681873]
[1672618234124,0.51898152,16631.0,16630.0,0.00681873]
[1672618237906,0.21828152,16631.0,16630.0,0.00681873]
[1672618238117,0.51898152,16631.0,16630.0,0.00681873]
[1672618242959,0.21828152,16631.0,16630.0,0.00681873]
[1672618243167,0.51898152,16631.0,16630.0,0.00681873]
[1672618248524,0.21828152,16631.0,16630.0,0.00681873]
[1672618248734,0.51898152,16631.0,16630.0,0.00681873]
[1672618254947,0.21828152,16631.0,16630.0,0.00681873]
[1672618255265,0.51898152,16631.0,16630.0,0.00681873]
[1672618257159,0.21828152,16631.0,16630.0,0.00681873]
[1672618257569,0.51898152,16631.0,16630.0,0.00681873]
[1672618258724,0.21828152,16631.0,16630.0,0.00681873]
[1672618258942,0.51898152,16631.0,16630.0,0.00681873]
[1672618261876,0.21828152,16631.0,16630.0,0.00681873]
[1672618262097,0.51898152,16631.0,16630.0,0.00681873]
[1672618264300,0.51898152,16631.0,16630.0,0.00666802]
[1672618274073,0.21828152,16631.0,16630.0,0.00666802]
[1672618274384,0.51898152,16631.0,16630.0,0.00666802]
[1672618275020,0.21828152,16631.0,16630.0,0.00666802]
[1672618275228,0.51898152,16631.0,16630.0,0.00666802]
[1672618289198,0.21828152,16631.0,16630.0,0.00666802]
[1672618289402,0.51898152,16631.0,16630.0,0.00666802]
[1672618292250,0.21828152,16631.0,16630.0,0.00666802]
[1672618292459,0.51898152,16631.0,16630.0,0.00666802]
[1672618292876,0.21828152,16631.0,16630.0,0.00666802]
[1672618293401,0.51898152,16631.0,16630.0,0.00666802]
[1672618295398,0.21828152,16631.0,16630.0,0.00666802]
[1672618295608,0.51898152,16631.0,16630.0,0.00666802]
[1672618308333,0.21828152,16631.0,16630.0,0.00666802]
[1672618308549,0.51898152,16631.0,16630.0,0.00652701]
[1672618317170,0.21828152,16631.0,16630.0,0.00652701]
[1672618317380,0.51898152,16631.0,16630.0,0.00652701]
[1672618317590,0.21828152,16631.0,16630.0,0.00652701]
[1672618317796,0.51898152,16631.0,16630.0,0.00652701]
[1672618318547,0.21828152,16631.0,16630.0,0.00652701]
[1672618318751,0.51898152,16631.0,16630.0,0.00652701]
[1672618324004,0.1,16630.0,16627.0,0.3051]
[1672618324211,0.6616,16628.0,16627.0,0.3051]
[1672618324425,0.6616,16628.0,16624.0,0.22521028]
[1672618324745,0.1205,16625.0,16623.0,1.15701028]
[1672618324957,0.1196,16624.0,16623.0,0.82591028]
[1672618326425,0.1206,16624.0,16623.0,0.82678972]
[1672618330527,0.1206,16624.0,16623.0,0.7367]
[1672618333676,0.1206,16624.0,16623.0,0.4367]
[1672618333882,0.001,16624.0,16623.0,0.4367]
[1672618334306,0.001,16624.0,16623.0,0.7367]
[1672618338097,0.001,16624.0,16623.0,0.436]
[1672618338304,0.001,16624.0,16623.0,0.7367]
[1672618339250,0.001,16624.0,16623.0,0.4367]
[1672618341459,0.001,16624.0,16623.0,0.136]
[1672618341670,0.001,16624.0,16623.0,0.4367]
[1672618353965,0.1215,16624.0,16623.0,0.4367]
[1672618363956,0.1215,16624.0,16623.0,0.52678972]
[1672618364905,0.1215,16624.0,16623.0,0.4367]
[1672618365114,0.1215,16624.0,16623.0,0.52678972]
[1672618365326,0.1215,16624.0,16623.0,0.4367]
[1672618366373,0.1215,16624.0,16623.0,0.52678972]
[1672618366799,0.1215,16624.0,16623.0,0.22608972]
[1672618367012,0.1215,16624.0,16623.0,0.32608972]
[1672618367221,0.1215,16624.0,16623.0,0.62678972]
[1672618368688,0.1215,16624.0,16623.0,0.5367]
[1672618369848,0.1215,16624.0,16623.0,0.62678972]
[1672618371959,0.1215,16624.0,16623.0,0.32608972]
[1672618372483,0.1215,16624.0,16623.0,0.62678972]
[1672618372902,0.1215,16624.0,16623.0,0.32608972]
[1672618373524,0.1215,16624.0,16623.0,0.62678972]
[1672618373956,0.1203,16624.0,16623.0,0.62678972]
[1672618375844,0.1203,16624.0,16623.0,0.5367]
[1672618378154,0.1203,16624.0,16623.0,0.236]
[1672618382358,0.1203,16624.0,16623.0,0.23582995]
[1672618382998,0.1213,16624.0,16623.0,0.225]
[1672618383630,0.1203,16624.0,16623.0,0.211]
[1672618383840,0.2408,16624.0,16623.0,0.211]
[1672618398454,0.2408,16624.0,16623.0,0.30108972]
[1672618399287,0.2101,16624.0,16623.0,0.30108972]
[1672618403921,0.1215,16624.0,16623.0,0.30108972]
[1672618404337,0.1215,16624.0,16623.0,0.211]
[1672618411178,0.1215,16624.0,16623.0,0.111]
[1672618411389,0.242,16624.0,16623.0,0.111]
[1672618413380,0.5427,16624.0,16623.0,0.111]
[1672618414017,0.6632,16624.0,16623.0,0.111]
[1672618418743,0.3625,16624.0,16623.0,0.111]
[1672618419158,0.6632,16624.0,16623.0,0.111]
[1672618427055,0.3625,16624.0,16623.0,0.111]
[1672618427254,0.6632,16624.0,16623.0,0.111]
[1672618427457,0.3625,16624.0,16623.0,0.111]
[1672618427667,0.6632,16624.0,16623.0,0.111]
[1672618438921,0.3625,16624.0,16623.0,0.111]
[1672618439134,0.6632,16624.0,16623.0,0.111]
[1672618441652,0.5427,16624.0,16623.0,0.111]
[1672618451114,0.5427,16624.0,16623.0,0.11091588]
[1672618455011,0.242,16624.0,16623.0,0.11091588]
[1672618455209,0.5427,16624.0,16623.0,0.11091588]
[1672618456997,0.242,16624.0,16623.0,0.11091588]
[1672618457321,0.5427,16624.0,16623.0,0.11091588]
[1672618458371,0.242,16624.0,16623.0,0.11091588]
[1672618458786,0.5427,16624.0,16623.0,0.11091588]
[1672618459947,0.242,16624.0,16623.0,0.11091588]
[1672618460157,0.5427,16624.0,16623.0,0.11091588]
[1672618462353,0.242,16624.0,16623.0,0.11091588]
[1672618462565,0.5427,16624.0,16623.0,0.11091588]
[1672618463411,0.242,16624.0,16623.0,0.11091588]
[1672618463616,0.5427,16624.0,16623.0,0.11091588]
[1672618471499,0.242,16624.0,16623.0,0.11091588]
[1672618471820,0.5427,16624.0,16623.0,0.11091588]
[1672618472023,0.5427,16624.0,16623.0,0.21091588]
[1672618472024,0.4222,16624.0,16623.0,0.21091588]
[1672618476554,0.1215,16624.0,16623.0,0.21091588]
[1672618505151,0.4222,16624.0,16623.0,0.21091588]
[1672618505888,0.4222,16624.0,16623.0,0.21084808]
[1672618508938,0.1215,16624.0,16623.0,0.21084808]
[1672618533627,0.09118,16624.0,16623.0,0.21084808]
[1672618533841,0.1205,16624.0,16623.0,0.21084808]
[1672618542991,0.12042255,16624.0,16623.0,0.21084808]
[1672618546764,0.42112255,16624.0,16623.0,0.21084808]
[1672618546979,0.12042255,16624.0,16623.0,0.21084808]
[1672618547201,0.42112255,16624.0,16623.0,0.21084808]
[1672618549511,0.12042255,16624.0,16623.0,0.21084808]
[1672618554251,0.42112255,16624.0,16623.0,0.21084808]
[1672618555509,0.12042255,16624.0,16623.0,0.21084808]
[1672618555719,0.42112255,16624.0,16623.0,0.21084808]
[1672618556134,0.42212255,16624.0,16623.0,0.218]
[1672618556772,0.45012255,16624.0,16623.0,0.1]
[1672618560974,0.14942255,16624.0,16623.0,0.1]
[1672618561189,0.45012255,16624.0,16623.0,0.1]
[1672618562124,0.14942255,16624.0,16623.0,0.1]
[1672618562340,0.45012255,16624.0,16623.0,0.1]
[1672618563493,0.14942255,16624.0,16623.0,0.1]
[1672618563913,0.1495,16624.0,16623.0,0.1]
[1672618564116,0.4502,16624.0,16623.0,0.1]
[1672618566550,0.1495,16624.0,16623.0,0.1]
[1672618567075,0.4502,16624.0,16623.0,0.1]
[1672618568647,0.1495,16624.0,16623.0,0.1]
[1672618568968,0.4502,16624.0,16623.0,0.1]
[1672618569804,0.1495,16624.0,16623.0,0.1]
[1672618570009,0.4502,16624.0,16623.0,0.1]
[1672618571897,0.1495,16624.0,16623.0,0.1]
[1672618572113,0.4502,16624.0,16623.0,0.1]
[1672618573784,0.1495,16624.0,16623.0,0.1]
[1672618574002,0.27,16624.0,16623.0,0.1]
[1672618574218,0.5707,16624.0,16623.0,0.1]
[1672618574845,0.5707,16624.0,16622.0,0.1]
[1672618575063,0.2205,16623.0,16622.0,0.1]
[1672618576104,0.2205,16623.0,16622.0,0.132]
[1672618578211,0.5212,16623.0,16622.0,0.132]
[1672618579365,0.6417,16623.0,16622.0,0.032]
[1672618594085,0.341,16623.0,16622.0,0.032]
[1672618594298,0.6417,16623.0,16622.0,0.032]
[1672618595236,0.6417,16623.0,16622.0,0.03188906]
[1672618603865,0.341,16623.0,16622.0,0.03188906]
[1672618604072,0.6417,16623.0,16622.0,0.03188906]
[1672618608795,0.341,16623.0,16622.0,0.03188906]
[1672618609009,0.6417,16623.0,16622.0,0.03188906]
[1672618609323,0.7617,16623.0,16622.0,0.03188906]
[1672618610790,0.461,16623.0,16622.0,0.03188906]
[1672618611003,0.7617,16623.0,16622.0,0.03188906]
[1672618630762,0.461,16623.0,16622.0,0.03188906]
[1672618630981,0.7617,16623.0,16622.0,0.03188906]
[1672618631922,0.461,16623.0,16622.0,0.03188906]
[1672618632134,0.7617,16623.0,16622.0,0.03188906]
[1672618633826,0.461,16623.0,16622.0,0.03188906]
[1672618634019,0.7617,16623.0,16622.0,0.03188906]
[1672618638013,0.461,16623.0,16622.0,0.03188906]
[1672618638229,0.7617,16623.0,16622.0,0.03188906]
[1672618639908,0.461,16623.0,16622.0,0.03188906]
[1672618640227,0.7617,16623.0,16622.0,0.03188906]
[1672618640436,0.7617,16623.0,16622.0,0.03166703]
[1672618648837,0.461,16623.0,16622.0,0.03166703]
[1672618649051,0.7617,16623.0,16622.0,0.03166703]
[1672618649679,0.461,16623.0,16622.0,0.03166703]
[1672618649894,0.7617,16623.0,16622.0,0.03166703]
[1672618651471,0.461,16623.0,16622.0,0.03166703]
[1672618652198,0.7617,16623.0,16622.0,0.03166703]
[1672618654827,0.461,16623.0,16622.0,0.03166703]
[1672618655035,0.7617,16623.0,16622.0,0.03166703]
[1672618678915,0.461,16623.0,16622.0,0.03166703]
[1672618679233,0.7617,16623.0,16622.0,0.03166703]
[1672618688070,1.3036,16623.0,16622.0,0.03166703]
[1672618688485,1.9051,16623.0,16622.0,0.03166703]
[1672618688806,0.1,16622.0,16620.0,0.3001]
[1672618689016,0.1,16620.0,16618.0,0.1]
[1672618689227,0.5415,16619.0,16618.0,0.1]
[1672618691335,0.5465,16619.0,16618.0,0.191]
[1672618699208,0.2458,16619.0,16618.0,0.191]
[1672618699417,0.5465,16619.0,16618.0,0.191]
[1672618699841,0.2458,16619.0,16618.0,0.191]
[1672618700152,0.5465,16619.0,16618.0,0.191]
[1672618700472,0.426,16619.0,16618.0,0.191]
[1672618702675,0.425,16619.0,16618.0,0.191]
[1672618708876,0.1243,16619.0,16618.0,0.191]
[1672618733900,0.1255,16619.0,16618.0,0.191]
[1672618736516,0.1255,16619.0,16618.0,0.091]
[1672618736728,0.246,16619.0,16618.0,0.091]
[1672618738949,0.241,16619.0,16617.0,0.1]
[1672618739149,0.1845,16619.0,16618.0,0.006]
[1672618739359,0.6057,16619.0,16618.0,0.006]
[1672618740618,0.6057,16619.0,16618.0,0.00578521]
[1672618749778,0.7262,16619.0,16618.0,0.00578521]
[1672618750399,1.1468,16619.0,16618.0,0.00578521]
[1672618750721,0.2197,16618.0,16616.0,0.1]
[1672618750928,0.7622,16617.0,16616.0,0.1]
[1672618751346,0.7622,16617.0,16615.0,0.1]
[1672618751658,0.3403,16616.0,16615.0,0.1]
[1672618752290,0.3403,16616.0,16615.0,0.178]
[1672618753662,0.2403,16616.0,16615.0,0.178]
[1672618753873,0.1198,16616.0,16615.0,0.178]
[1672618754075,0.2258,16616.0,16615.0,0.178]
[1672618757260,0.4265,16616.0,16615.0,0.178]
[1672618764502,0.1,16615.0,16614.0,0.1]
[1672618765972,0.117,16615.0,16614.0,0.106]
[1672618772036,0.4177,16615.0,16614.0,0.106]
[1672618772991,0.5378,16615.0,16614.0,0.106]
[1672618773627,0.5378,16615.0,16614.0,0.006]
[1672618773628,0.7781,16615.0,16614.0,0.006]
[1672618779728,0.77793665,16615.0,16614.0,0.006]
[1672618793698,1.32023665,16615.0,16611.0,0.1]
[1672618793921,0.5411,16612.0,16611.0,0.1]
[1672618794861,0.5411,16612.0,16611.0,0.101]
[1672618795899,0.5561,16612.0,16611.0,0.101]
[1672618799371,0.5561,16612.0,16611.0,0.001]
[1672618799693,0.6763,16612.0,16611.0,0.001]
[1672618812517,0.5558,16612.0,16611.0,0.001]
[1672618816712,0.2551,16612.0,16611.0,0.001]
[1672618816928,0.5558,16612.0,16611.0,0.001]
[1672618818511,0.2551,16612.0,16611.0,0.001]
[1672618818923,0.5558,16612.0,16611.0,0.001]
[1672618822085,0.2551,16612.0,16611.0,0.001]
[1672618822285,0.5558,16612.0,16611.0,0.001]
[1672618826394,0.40539141,16612.0,16611.0,0.001]
[1672618828700,0.70539141,16612.0,16611.0,0.1]
[1672618830492,0.40469141,16612.0,16611.0,0.1]
[1672618830914,0.70539141,16612.0,16611.0,0.1]
[1672618835010,0.40469141,16612.0,16611.0,0.1]
[1672618835324,0.70539141,16612.0,16611.0,0.1]
[1672618837733,0.4208,16612.0,16611.0,0.1]
[1672618841932,0.6007,16612.0,16611.0,0.1]
[1672618842145,0.7212,16612.0,16611.0,0.1]
[1672618844461,0.1,16611.0,16609.0,0.1]
[1672618844675,0.4202,16610.0,16609.0,0.1]
[1672618844883,0.7202,16610.0,16609.0,0.1]
[1672618845508,0.7202,16610.0,16608.0,0.12713907]
[1672618845728,0.1205,16609.0,16608.0,0.12713907]
[1672618846043,0.2205,16609.0,16608.0,0.12713907]
[1672618846772,0.2335,16609.0,16608.0,0.14013907]
[1672618847825,0.5342,16609.0,16608.0,0.14013907]
[1672618849617,0.5352,16609.0,16608.0,0.13913907]
[1672618850460,0.5212,16609.0,16608.0,0.12713907]
[1672618850670,0.5372,16609.0,16608.0,0.13913907]
[1672618850981,0.5212,16609.0,16608.0,0.12713907]
[1672618851190,0.5372,16609.0,16608.0,0.13913907]
[1672618861167,0.6577,16609.0,16608.0,0.012]
[1672618865365,0.9577,16609.0,16608.0,0.012]
[1672618879674,0.8577,16609.0,16608.0,0.012]
[1672618881259,0.5577,16609.0,16608.0,0.012]
[1672618882203,0.5577,16609.0,16608.0,0.0117811]
[1672618882934,0.4372,16609.0,16608.0,0.0117811]
[1672618887674,0.411723,16609.0,16608.0,0.0117811]
[1672618892824,0.411723,16609.0,16608.0,0.14722597]
[1672618893765,0.411723,16609.0,16608.0,0.0117811]
[1672618896925,0.511723,16609.0,16608.0,0.0117811]
[1672618898701,0.411723,16609.0,16608.0,0.0117811]
[1672618901232,0.411723,16609.0,16608.0,0.14722597]
[1672618901428,0.411723,16609.0,16608.0,0.0117811]
[1672618903650,0.382026,16609.0,16608.0,0.14722597]
[1672618917202,0.382026,16609.0,16608.0,0.42738672]
[1672618917516,0.382026,16609.0,16608.0,0.24722597]
[1672618919099,0.382026,16609.0,16608.0,0.42738672]
[1672618919513,0.382026,16609.0,16608.0,0.24722597]
[1672618919718,0.382026,16609.0,16608.0,0.42738672]
[1672618921086,0.382026,16609.0,16608.0,0.92564616]
[1672618922245,0.352101,16609.0,16608.0,0.92564616]
[1672618922671,0.051401,16609.0,16608.0,0.92564616]
[1672618922874,0.352101,16609.0,16608.0,0.92564616]
[1672618925927,0.352101,16609.0,16608.0,0.42738672]
[1672618926130,0.352101,16609.0,16608.0,0.24722597]
[1672618927608,0.352101,16609.0,16608.0,0.92564831]
[1672618927609,0.652101,16609.0,16608.0,0.92564831]
[1672618928236,0.652101,16609.0,16608.0,0.79020344]
[1672618928558,0.622551,16609.0,16608.0,0.79020344]
[1672618932764,0.321851,16609.0,16608.0,0.79020344]
[1672618932969,0.622551,16609.0,16608.0,0.79020344]
[1672618936433,0.59201,16609.0,16608.0,0.79020344]
[1672618936644,0.71251,16609.0,16608.0,0.79020344]
[1672618936855,0.41181,16609.0,16608.0,0.79020344]
[1672618937062,0.71251,16609.0,16608.0,0.79020344]
[1672618937698,0.41181,16609.0,16608.0,0.79020344]
[1672618937905,0.71251,16609.0,16608.0,0.79020344]
[1672618938852,0.71251,16609.0,16608.0,0.9256977]
[1672618939170,0.71251,16609.0,16608.0,0.9257171]
[1672618940115,0.71251,16609.0,16608.0,0.42745551]
[1672618941934,0.71251,16609.0,16608.0,0.24729476]
[1672618944957,0.41181,16609.0,16608.0,0.24729476]
[1672618945170,0.71251,16609.0,16608.0,0.24729476]
[1672618945789,0.41181,16609.0,16608.0,0.24729476]
[1672618946003,0.71251,16609.0,16608.0,0.24729476]
[1672618948736,0.71251,16609.0,16608.0,0.33764183]
[1672618951044,0.71251,16609.0,16608.0,0.20212817]
[1672618954844,0.41181,16609.0,16608.0,0.20212817]
[1672618955052,0.71251,16609.0,16608.0,0.20212817]
[1672618958730,0.41181,16609.0,16608.0,0.33764183]
[1672618958941,0.71251,16609.0,16608.0,0.33764183]
[1672618959877,0.41181,16609.0,16608.0,0.33764183]
[1672618960093,0.71251,16609.0,16608.0,0.33764183]
[1672618960302,0.71251,16609.0,16608.0,0.20212817]
[1672618961777,0.71251,16609.0,16608.0,0.33764183]
[1672618962199,0.71251,16609.0,16608.0,0.20212817]
[1672618962933,0.41181,16609.0,16608.0,0.20212817]
[1672618963140,0.71251,16609.0,16608.0,0.20212817]
[1672618963782,0.71251,16609.0,16608.0,0.33764183]
[1672618965466,0.71251,16609.0,16608.0,0.20212817]
[1672618965677,0.71251,16609.0,16608.0,0.33764183]
[1672618966511,0.71251,16609.0,16608.0,0.20212817]
[1672618966721,0.71251,16609.0,16608.0,0.33764183]
[1672618966936,0.71251,16609.0,16608.0,0.20212817]
[1672618969037,0.41181,16609.0,16608.0,0.20212817]
[1672618969248,0.71251,16609.0,16608.0,0.20212817]
[1672618973563,0.71251,16609.0,16608.0,0.33764183]
[1672618973977,0.71251,16609.0,16608.0,0.24729476]
[1672618974290,0.71251,16609.0,16608.0,0.33761564]
[1672618975144,0.71251,16609.0,16608.0,0.24729476]
[1672618977760,0.41181,16609.0,16608.0,0.24729476]
[1672618977971,0.71251,16609.0,16608.0,0.24729476]
[1672618983338,0.71251,16609.0,16608.0,0.24711414]
[1672618984912,0.41181,16609.0,16608.0,0.24711414]
[1672618985227,0.71251,16609.0,16608.0,0.24711414]
[1672618991112,0.68232715,16609.0,16608.0,0.24711414]
[1672618991639,0.68232715,16609.0,16608.0,0.33745765]
[1672618991839,0.68232715,16609.0,16608.0,0.24711414]
[1672618992262,0.68232715,16609.0,16608.0,0.33745837]
[1672618992476,0.65711715,16609.0,16608.0,0.33745837]
[1672618993524,0.65711715,16609.0,16608.0,0.24711414]
[1672619000038,0.35641715,16609.0,16608.0,0.24711414]
[1672619000246,0.65711715,16609.0,16608.0,0.24711414]
[1672619007404,0.65711715,16609.0,16608.0,0.42727489]
[1672619010556,0.657031,16609.0,16608.0,0.24711414]
[1672619011920,0.356331,16609.0,16608.0,0.24711414]
[1672619012133,0.657031,16609.0,16608.0,0.24711414]
[1672619012967,0.356331,16609.0,16608.0,0.24711414]
[1672619013290,0.657031,16609.0,16608.0,0.24711414]
[1672619016339,0.626852,16609.0,16608.0,0.24711414]
[1672619017908,0.641852,16609.0,16608.0,0.25951366]
[1672619018329,0.626852,16609.0,16608.0,0.23551366]
[1672619018534,0.634852,16609.0,16608.0,0.25851366]
[1672619018959,0.334152,16609.0,16608.0,0.25851366]
[1672619019168,0.634852,16609.0,16608.0,0.25851366]
[1672619026957,0.334152,16609.0,16608.0,0.25851366]
[1672619027162,0.634852,16609.0,16608.0,0.25851366]
[1672619031894,0.334152,16609.0,16608.0,0.25851366]
[1672619032104,0.634852,16609.0,16608.0,0.25851366]
[1672619035145,0.334152,16609.0,16608.0,0.25851366]
[1672619035367,0.634852,16609.0,16608.0,0.25851366]
[1672619038402,0.334152,16609.0,16608.0,0.25851366]
[1672619038618,0.634852,16609.0,16608.0,0.25851366]
[1672619045134,0.334152,16609.0,16608.0,0.25851366]
[1672619045345,0.634852,16609.0,16608.0,0.25851366]
[1672619048711,0.334152,16609.0,16608.0,0.25851366]
[1672619049123,0.634852,16609.0,16608.0,0.25851366]
[1672619050704,0.634852,16609.0,16608.0,0.43867441]
[1672619051446,0.634852,16609.0,16608.0,0.80143832]
[1672619052072,0.634852,16609.0,16608.0,0.93700553]
[1672619052812,0.334152,16609.0,16608.0,0.93700553]
[1672619053232,0.634852,16609.0,16608.0,0.93700553]
[1672619053754,0.334152,16609.0,16608.0,0.93700553]
[1672619054177,0.634852,16609.0,16608.0,0.93700553]
[1672619054703,0.634852,16609.0,16608.0,0.43872796]
[1672619055644,0.634852,16609.0,16608.0,0.93700511]
[1672619056176,0.634852,16609.0,16608.0,0.43872796]
[1672619057860,0.634852,16609.0,16608.0,0.25856721]
[1672619060701,0.634852,16609.0,16608.0,0.43872796]
[1672619060903,0.634852,16609.0,16608.0,0.25856721]
[1672619063315,0.634852,16609.0,16608.0,0.93699626]
[1672619065629,0.634852,16609.0,16608.0,0.43872796]
[1672619065840,0.634852,16609.0,16608.0,0.25856721]
[1672619068884,0.634852,16609.0,16608.0,0.25848898]
[1672619071933,0.334152,16609.0,16608.0,0.25848898]
[1672619072146,0.634852,16609.0,16608.0,0.25848898]
[1672619075192,0.634852,16609.0,16608.0,0.34885296]
[1672619075826,0.634852,16609.0,16608.0,0.25848898]
[1672619086855,0.634852,16609.0,16608.0,0.43919437]
[1672619087066,0.553842,16609.0,16608.0,0.80191225]
[1672619087381,0.53939875,16609.0,16608.0,1.62890922]
[1672619087600,0.53939875,16609.0,16608.0,1.44818202]
[1672619087916,0.23869875,16609.0,16608.0,1.56868202]
[1672619088123,0.65189875,16611.0,16608.0,1.86938202]
[1672619088438,0.65189875,16611.0,16610.0,0.22577538]
[1672619088654,0.65189875,16611.0,16610.0,0.32577538]
[1672619088852,0.65189875,16611.0,16610.0,0.32577477]
[1672619089271,0.65189875,16611.0,16610.0,0.23546523]
[1672619089691,0.76289875,16611.0,16610.0,0.32977464]
[1672619090224,0.76289875,16611.0,16610.0,0.19430941]
[1672619093165,0.76289875,16611.0,16610.0,0.93177464]
[1672619093365,0.76289875,16611.0,16610.0,0.79630941]
[1672619095801,0.76289875,16611.0,16610.0,0.104]
[1672619096217,0.76189875,16611.0,16610.0,0.104]
[1672619096433,0.76189875,16611.0,16610.0,0.004]
[1672619096649,0.88199875,16611.0,16610.0,0.004]
[1672619102942,0.58129875,16611.0,16610.0,0.004]
[1672619103152,0.88199875,16611.0,16610.0,0.004]
[1672619111997,0.88176844,16611.0,16610.0,0.004]
[1672619114941,0.58106844,16611.0,16610.0,0.004]
[1672619115146,0.88176844,16611.0,16610.0,0.004]
[1672619121243,0.85129093,16611.0,16610.0,0.004]
[1672619124394,0.85129093,16611.0,16610.0,0.09430941]
[1672619129965,0.85129093,16611.0,16610.0,0.22977464]
[1672619131426,0.85129093,16611.0,16610.0,0.09430941]
[1672619137952,0.73179093,16611.0,16610.0,0.09430941]
[1672619140378,0.43109093,16611.0,16610.0,0.09430941]
[1672619140689,0.73179093,16611.0,16610.0,0.09430941]
[1672619142168,0.43109093,16611.0,16610.0,0.09430941]
[1672619142369,0.73179093,16611.0,16610.0,0.09430941]
[1672619143006,0.43109093,16611.0,16610.0,0.09430941]
[1672619143323,0.73179093,16611.0,16610.0,0.09430941]
[1672619143947,0.43109093,16611.0,16610.0,0.09430941]
[1672619144161,0.73179093,16611.0,16610.0,0.09430941]
[1672619148987,0.43109093,16611.0,16610.0,0.09430941]
[1672619149508,0.73179093,16611.0,16610.0,0.09430941]
[1672619154569,0.73179093,16611.0,16610.0,0.22977464]
[1672619155622,0.43109093,16611.0,16610.0,0.22977464]
[1672619155928,0.73179093,16611.0,16610.0,0.22977464]
[1672619159822,0.43109093,16611.0,16610.0,0.22977464]
[1672619160032,0.73179093,16611.0,16610.0,0.22977464]
[1672619162017,0.73179093,16611.0,16610.0,0.09430941]
[1672619162231,0.73179093,16611.0,16610.0,0.22977464]
[1672619167914,0.43109093,16611.0,16610.0,0.22977464]
[1672619168234,0.73179093,16611.0,16610.0,0.22977464]
[1672619168858,0.73179093,16611.0,16610.0,0.2295682]
[1672619169808,0.43109093,16611.0,16610.0,0.2295682]
[1672619170015,0.73179093,16611.0,16610.0,0.2295682]
[1672619175177,0.73179093,16611.0,16610.0,0.09410297]
[1672619178546,0.43109093,16611.0,16610.0,0.09410297]
[1672619178747,0.73179093,16611.0,16610.0,0.09410297]
[1672619180643,0.43109093,16611.0,16610.0,0.09410297]
[1672619180853,0.73179093,16611.0,16610.0,0.09410297]
[1672619182531,0.43109093,16611.0,16610.0,0.09410297]
[1672619182738,0.73179093,16611.0,16610.0,0.09410297]
[1672619184943,0.43109093,16611.0,16610.0,0.09410297]
[1672619185154,0.73179093,16611.0,16610.0,0.09410297]
[1672619185574,0.43109093,16611.0,16610.0,0.09410297]
[1672619185781,0.73179093,16611.0,16610.0,0.09410297]
[1672619187047,0.43109093,16611.0,16610.0,0.09410297]
[1672619187253,0.73179093,16611.0,16610.0,0.09410297]
[1672619187467,0.43109093,16611.0,16610.0,0.00379356]
[1672619187793,0.73179093,16611.0,16610.0,0.00379356]
[1672619188526,0.43109093,16611.0,16610.0,0.00379356]
[1672619188739,0.73179093,16611.0,16610.0,0.00379356]
[1672619189163,0.73179093,16611.0,16610.0,0.09410297]
[1672619189368,0.73179093,16611.0,16610.0,0.00379356]
[1672619189579,0.73179093,16611.0,16610.0,0.09410297]
[1672619191466,0.73179093,16611.0,16610.0,0.00379356]
[1672619195055,0.43109093,16611.0,16610.0,0.00379356]
[1672619195368,0.73179093,16611.0,16610.0,0.00379356]
[1672619197467,0.43109093,16611.0,16610.0,0.00379356]
[1672619197687,0.73179093,16611.0,16610.0,0.00379356]
[1672619199052,0.43109093,16611.0,16610.0,0.00379356]
[1672619199265,0.73179093,16611.0,16610.0,0.00379356]
[1672619200518,0.73179093,16611.0,16610.0,0.09410297]
[1672619200732,0.73179093,16611.0,16610.0,0.00379356]
[1672619202095,0.73179093,16611.0,16610.0,0.09410297]
[1672619203047,0.43109093,16611.0,16610.0,0.09410297]
[1672619203251,0.73179093,16611.0,16610.0,0.09410297]
[1672619204937,0.73179093,16611.0,16610.0,0.00379356]
[1672619205561,0.73179093,16611.0,16610.0,0.09410297]
[1672619213024,0.43109093,16611.0,16610.0,0.09410297]
[1672619213240,0.73179093,16611.0,16610.0,0.09410297]
[1672619214176,0.73179093,16611.0,16610.0,0.09394855]
[1672619214813,0.43109093,16611.0,16610.0,0.09394855]
[1672619215024,0.73179093,16611.0,16610.0,0.09394855]
[1672619217654,0.43109093,16611.0,16610.0,0.09394855]
[1672619217969,0.73179093,16611.0,16610.0,0.09394855]
[1672619220702,0.43109093,16611.0,16610.0,0.09394855]
[1672619221017,0.73179093,16611.0,16610.0,0.09394855]
[1672619221751,0.73161432,16611.0,16610.0,0.09394855]
[1672619228699,0.43091432,16611.0,16610.0,0.09394855]
[1672619228909,0.73161432,16611.0,16610.0,0.09394855]
[1672619232059,0.43091432,16611.0,16610.0,0.09394855]
[1672619232272,0.73161432,16611.0,16610.0,0.09394855]
[1672619232898,0.43091432,16611.0,16610.0,0.09394855]
[1672619233114,0.73161432,16611.0,16610.0,0.09394855]
[1672619234681,0.43091432,16611.0,16610.0,0.09394855]